bitfinex-derivatives/quotes_SOLF0:USTF0_20241222
["timestamp","ask_amount","ask_price","bid_price","bid_amount"]
[1734836055914,3.46,181.98,181.84,4.9051]
[1734836056308,2.7506,181.89,181.84,4.9051]
[1734836056504,3.46,181.91,181.82,60.73577953]
[1734836056808,3.46,181.9,181.82,60.73577953]
[1734836057013,16.6811913,181.94,181.82,60.73577953]
[1734836057014,3.46,181.89,181.82,60.73577953]
[1734836057210,3.46,181.88,181.82,60.73577953]
[1734836058215,3.46,181.88,181.79,4.8732]
[1734836060517,2.7511,181.85,181.79,4.8732]
[1734836061216,3.46,181.88,181.79,4.8732]
[1734836061516,3.3065,181.93,181.81,27.19733819]
[1734836061754,6.7665,181.93,181.81,27.19733819]
[1734836062015,6.7665,181.93,181.84,27.19733819]
[1734836062309,2.7502,181.92,181.84,29.94853819]
[1734836062914,2.7502,181.91,181.84,29.94853819]
[1734836066010,2.7503,181.9,181.84,29.94853819]
[1734836066415,2.7498,181.94,181.86,2.7509]
[1734836066614,3.4,181.95,181.86,2.7509]
[1734836067414,2.7501,181.92,181.86,2.7509]
[1734836070915,2.7504,181.9,181.85,3.4]
[1734836072321,2.7504,181.9,181.85,2.7511]
[1734836073620,3.4,181.95,181.85,2.7511]
[1734836073820,2.7505,181.89,181.85,2.7511]
[1734836074129,3.4,181.95,181.86,2.7509]
[1734836074427,2.7501,181.92,181.86,2.7509]
[1734836074925,3.4,181.95,181.86,2.7509]
[1734836074926,2.7502,181.91,181.86,2.7509]
[1734836075125,3.4,181.95,181.89,2.7504]
[1734836075325,6.8217,181.98,181.89,2.7504]
[1734836075523,27.19733819,182.01,181.87,27.19733819]
[1734836075723,2.7494,181.97,181.92,2.75]
[1734836075925,3.42,182.01,181.9,27.19733819]
[1734836076123,2.7499,181.93,181.89,2.7505]
[1734836076324,3.42,182.01,181.88,8.6152]
[1734836077432,2.7495,181.96,181.9,2.7503]
[1734836078927,3.4,181.99,181.88,5.1952]
[1734836080725,2.7495,181.96,181.9,2.7502]
[1734836080970,3.4,181.99,181.88,5.1952]
[1734836081331,2.7494,181.96,181.88,5.1952]
[1734836081734,2.7494,181.96,181.88,21.90849136]
[1734836082435,2.7494,181.96,181.9,2.7502]
[1734836083035,3.4,181.99,181.88,21.90849136]
[1734836083036,2.7491,181.99,181.88,21.90849136]
[1734836083232,3.4,182.0,181.88,21.90849136]
[1734836083533,2.7492,181.98,181.92,2.7499]
[1734836084836,3.4,182.0,181.9,3.4]
[1734836085634,3.4,182.0,181.88,5.1952]
[1734836087236,3.4,182.0,181.88,8.5952]
[1734836087437,3.4,182.0,181.9,2.7503]
[1734836087827,3.4,182.0,181.88,8.5952]
[1734836088734,2.7498,181.94,181.88,8.5952]
[1734836089140,2.7498,181.94,181.88,5.1952]
[1734836091135,3.4,181.95,181.88,5.1952]
[1734836091334,3.4,181.95,181.88,1.76]
[1734836091735,2.7502,181.92,181.88,1.76]
[1734836092037,3.4,181.98,181.88,1.76]
[1734836092239,3.4,181.98,181.89,1.725]
[1734836092654,3.4,181.98,181.9,1.7333]
[1734836092839,2.7495,181.96,181.9,2.7503]
[1734836093040,3.4,181.98,181.89,1.725]
[1734836094139,2.7496,181.95,181.89,4.4754]
[1734836094938,3.4,181.98,181.92,2.75]
[1734836095141,4.9273,182.03,181.91,16.71329136]
[1734836095336,2.749,182.0,181.93,2.7497]
[1734836095742,3.26,182.02,181.93,2.7497]
[1734836097547,3.26,182.02,181.91,2.7501]
[1734836098436,3.26,182.02,181.89,4.985]
[1734836098437,2.749,181.99,181.94,2.7497]
[1734836098639,2.749,181.99,181.89,4.985]
[1734836098841,2.749,181.99,181.91,16.71329136]
[1734836099244,2.7486,182.02,181.91,16.71329136]
[1734836099441,3.26,182.04,181.94,16.71329136]
[1734836099636,3.26,182.05,181.95,6.532]
[1734836100073,2.7484,182.03,181.98,2.749]
[1734836100547,2.7484,182.03,181.97,2.7493]
[1734836101346,3.26,182.05,181.95,6.532]
[1734836101546,2.7487,182.01,181.96,2.7494]
[1734836101743,3.26,182.05,181.95,6.532]
[1734836103148,3.26,182.05,181.95,3.272]
[1734836103353,3.26,182.04,181.95,3.272]
[1734836104045,3.26,182.04,181.95,6.0214]
[1734836104294,16.71329136,182.01,181.83,90.75170513]
[1734836104439,16.71329136,181.98,181.83,90.75170513]
[1734836104648,3.26,181.97,181.83,90.75170513]
[1734836104860,3.26,181.97,181.84,60.50113675]
[1734836105043,16.71329136,181.98,181.84,60.50113675]
[1734836105250,2.75,181.93,181.84,60.50113675]
[1734836105552,3.26,181.95,181.86,16.71329136]
[1734836105748,3.26,181.97,181.86,16.71329136]
[1734836106245,3.26,181.97,181.86,19.97329136]
[1734836106444,2.7496,181.96,181.89,2.7505]
[1734836108348,4.978,182.0,181.86,19.97329136]
[1734836108551,3.26,182.01,181.92,16.71329136]
[1734836108851,2.7488,182.0,181.94,2.7497]
[1734836109747,2.7488,182.0,181.93,2.7499]
[1734836109942,3.26,182.01,181.92,4.9724]
[1734836110142,3.26,182.01,181.89,16.71329136]
[1734836110455,3.26,182.01,181.89,19.46379136]
[1734836111547,3.26,182.01,181.9,2.7503]
[1734836111954,3.26,182.01,181.89,16.71329136]
[1734836112157,60.76531491,182.04,181.92,16.71329136]
[1734836112450,3.26,182.04,181.95,16.71329136]
[1734836112653,6.0083,182.04,181.97,2.7492]
[1734836113150,2.7483,182.04,181.98,2.7491]
[1734836113350,29.68760089,182.07,181.98,16.71329136]
[1734836113893,3.26,182.08,182.01,2.7486]
[1734836114053,2.7478,182.07,181.99,3.26]
[1734836114245,3.26,182.08,181.99,3.26]
[1734836114446,3.26,182.08,181.98,16.71329136]
[1734836114656,2.7481,182.05,181.98,16.71329136]
[1734836115451,3.26,182.08,181.98,16.71329136]
[1734836115752,2.7479,182.06,182.0,2.7488]
[1734836116149,2.7478,182.07,182.01,2.7486]
[1734836117458,3.26,182.1,182.02,2.7484]
[1734836118656,2.7476,182.08,182.02,2.7484]
[1734836121158,2.7479,182.06,182.0,2.7487]
[1734836121960,2.7479,182.06,182.01,2.7486]
[1734836125558,3.26,182.1,181.98,16.71329136]
[1734836125861,3.26,182.1,181.95,19.89329136]
[1734836126063,2.748,182.06,181.98,2.7491]
[1734836126364,3.26,182.1,181.95,19.89329136]
[1734836126662,2.7481,182.05,182.0,2.7488]
[1734836126865,3.26,182.1,181.98,16.71329136]
[1734836127460,2.7476,182.08,181.98,16.71329136]
[1734836127860,2.7476,182.08,182.02,2.7484]
[1734836128262,2.7476,182.08,182.0,3.18]
[1734836128966,2.7476,182.08,182.03,2.7483]
[1734836129561,2.7474,182.1,182.01,16.71329136]
[1734836129767,2.7474,182.1,182.01,18.32669136]
[1734836129967,2.7474,182.1,182.02,3.3499]
[1734836130459,2.7474,182.1,182.05,2.748]
[1734836132761,4.8218,182.12,182.02,3.3499]
[1734836133461,2.7477,182.08,182.02,6.0984]
[1734836133663,4.8218,182.12,182.01,1.6134]
[1734836133861,4.9421,182.11,181.95,16.71329136]
[1734836134058,16.71329136,182.1,181.95,19.89329136]
[1734836134263,16.71329136,182.1,181.95,16.71329136]
[1734836134568,1.6685,182.09,181.94,2.7497]
[1734836135369,2.7487,182.01,181.95,2.7495]
[1734836135571,3.18,182.02,181.92,23.32579136]
[1734836135768,3.18,182.01,181.92,23.32579136]
[1734836135968,3.18,182.01,181.97,2.7493]
[1734836136169,3.18,182.01,181.92,23.32579136]
[1734836136565,3.18,182.01,181.94,2.7496]
[1734836136771,3.18,182.01,181.92,23.32579136]
[1734836137472,3.18,182.01,181.95,2.7495]
[1734836137667,5.9287,182.01,181.95,2.7495]
[1734836139575,2.7487,182.01,181.95,19.46279136]
[1734836139775,2.7487,182.01,181.96,2.7494]
[1734836140675,2.7491,181.99,181.95,16.71329136]
[1734836140874,3.18,182.04,181.92,20.14579136]
[1734836141077,3.321,182.03,181.92,20.14579136]
[1734836141470,3.321,182.03,181.9,1.7706]
[1734836141678,3.321,182.03,181.86,19.89329136]
[1734836141985,16.71329136,182.01,181.86,16.71329136]
[1734836142182,1.7144,182.0,181.86,16.71329136]
[1734836142379,16.71329136,181.98,181.83,19.46449136]
[1734836142678,16.71329136,181.98,181.81,3.18]
[1734836142874,16.71329136,181.98,181.82,2.7515]
[1734836143775,2.7506,181.89,181.81,5.9317]
[1734836144176,2.7506,181.89,181.81,3.18]
[1734836144478,2.7506,181.89,181.82,2.7514]
[1734836144977,2.7507,181.88,181.81,2.7517]
[1734836145875,3.18,181.9,181.79,3.3624]
[1734836146074,3.18,181.9,181.77,16.71329136]
[1734836146075,3.3379,181.89,181.77,16.71329136]
[1734836146274,4.9424,181.89,181.77,16.71329136]
[1734836146475,4.9424,181.89,181.74,16.71329136]
[1734836146679,21.65569136,181.89,181.74,16.71329136]
[1734836146879,2.752,181.79,181.72,6.1174]
[1734836148981,2.752,181.79,181.72,4.3482]
[1734836149180,2.752,181.79,181.71,16.71329136]
[1734836149181,2.7522,181.78,181.71,16.71329136]
[1734836149376,3.18,181.8,181.7,4.5247]
[1734836150481,2.7523,181.77,181.7,4.5247]
[1734836150680,3.18,181.76,181.66,2.7539]
[1734836150875,3.18,181.75,181.66,2.7539]
[1734836151982,3.18,181.75,181.65,4.8946]
[1734836152579,3.18,181.75,181.62,19.89329136]
[1734836152983,3.2423,181.78,181.65,16.71329136]
[1734836153194,16.71329136,181.89,181.68,16.71329136]
[1734836153195,3.18,181.82,181.68,16.71329136]
[1734836153387,3.18,181.82,181.71,16.71329136]
[1734836153787,3.18,181.81,181.71,16.71329136]
[1734836154181,3.18,181.81,181.74,16.71329136]
[1734836155188,2.7516,181.82,181.74,19.87329136]
[1734836156586,2.7516,181.82,181.76,2.7524]
[1734836158494,3.16,181.84,181.74,3.16]
[1734836158883,3.16,181.84,181.71,19.87329136]
[1734836160183,2.752,181.8,181.73,2.7529]
[1734836160389,2.752,181.8,181.71,19.87329136]
[1734836160603,3.16,181.81,181.71,19.87329136]
[1734836160986,2.7518,181.8,181.73,2.7528]
[1734836161706,5.1438,181.88,181.71,19.87329136]
[1734836161887,3.16,181.87,181.74,16.71329136]
[1734836162088,3.16,181.87,181.75,4.8453]
[1734836162387,2.7512,181.84,181.77,2.7523]
[1734836162591,5.1438,181.88,181.77,16.71329136]
[1734836162592,3.4589,181.88,181.77,16.71329136]
[1734836162892,5.9104,181.9,181.83,2.7513]
[1734836163189,3.16,181.93,181.81,3.16]
[1734836163592,2.7501,181.92,181.81,3.16]
[1734836163836,3.16,181.94,181.81,3.16]
[1734836164287,3.16,181.94,181.83,16.71329136]
[1734836164487,3.16,181.94,181.84,1.6853]
[1734836164988,2.7502,181.92,181.85,2.7511]
[1734836165187,3.16,181.94,181.84,1.6853]
[1734836165387,1.7484,181.97,181.85,3.16]
[1734836165592,3.16,181.96,181.85,3.16]
[1734836166190,2.7497,181.94,181.88,2.7506]
[1734836166492,2.7497,181.94,181.85,3.16]
[1734836166692,3.16,181.96,181.85,3.16]
[1734836167991,2.75,181.92,181.86,2.7508]
[1734836168192,3.16,181.92,181.84,1.6853]
[1734836168787,1.7484,181.97,181.84,1.6853]
[1734836168991,3.16,181.96,181.86,2.7509]
[1734836169200,3.16,181.96,181.84,1.6853]
[1734836169893,2.7499,181.94,181.87,2.7506]
[1734836170289,2.7499,181.94,181.88,2.7506]
[1734836170797,3.16,181.96,181.84,1.6853]
[1734836171596,16.71329136,181.94,181.79,1.6219]
[1734836171795,2.751,181.86,181.79,1.6219]
[1734836172000,2.751,181.86,181.79,4.3738]
[1734836172394,3.16,181.87,181.79,1.6219]
[1734836172593,3.16,181.87,181.76,19.46569136]
[1734836172787,3.16,181.87,181.73,21.72099136]
[1734836172994,2.7518,181.81,181.75,2.7526]
[1734836173197,3.16,181.82,181.73,5.0077]
[1734836173393,3.16,181.82,181.73,21.72099136]
[1734836173593,3.16,181.82,181.76,2.7524]
[1734836173998,3.16,181.82,181.73,21.72099136]
[1734836174188,3.16,181.86,181.76,16.71329136]
[1734836174792,5.9111,181.86,181.79,2.752]
[1734836175197,5.9111,181.86,181.8,2.7518]
[1734836175899,3.16,181.86,181.8,2.7518]
[1734836176093,3.16,181.89,181.8,2.7518]
[1734836177101,2.7511,181.85,181.78,5.9121]
[1734836178000,2.7511,181.85,181.79,2.752]
[1734836178394,3.16,181.89,181.79,2.752]
[1734836178601,2.7513,181.84,181.79,2.752]
[1734836178897,3.16,181.85,181.73,24.88099136]
[1734836179093,2.7517,181.81,181.73,24.88099136]
[1734836180501,2.7517,181.81,181.76,2.7524]
[1734836181599,3.16,181.85,181.73,21.72099136]
[1734836181805,3.16,181.85,181.74,2.7526]
[1734836182202,3.16,181.85,181.75,2.7524]
[1734836182203,2.7518,181.81,181.75,2.7524]
[1734836182500,3.16,181.85,181.73,21.72099136]
[1734836183406,2.7515,181.82,181.77,2.7523]
[1734836183606,2.7515,181.82,181.73,21.72099136]
[1734836183802,3.16,181.86,181.76,16.71329136]
[1734836184008,2.7508,181.87,181.82,2.7515]
[1734836184805,6.5616,181.9,181.79,19.87329136]
[1734836185105,2.7512,181.84,181.79,19.87329136]
[1734836185507,6.5616,181.9,181.79,3.16]
[1734836185702,3.14,181.89,181.76,19.85329136]
[1734836185899,3.14,181.89,181.76,3.14]
[1734836187410,3.4016,181.9,181.76,3.14]
[1734836187606,3.14,181.89,181.76,3.14]
[1734836190419,2.7512,181.84,181.78,2.752]
[1734836191615,3.14,181.85,181.76,3.14]
[1734836191912,3.4016,181.9,181.76,3.14]
[1734836191913,3.14,181.88,181.76,3.14]
[1734836192905,3.14,181.88,181.73,21.72099136]
[1734836193310,3.14,181.88,181.74,3.14]
[1734836193520,2.7517,181.82,181.75,2.7526]
[1734836194005,3.14,181.84,181.75,2.7526]
[1734836194213,2.7517,181.81,181.75,2.7526]
[1734836194406,3.14,181.84,181.77,2.7523]
[1734836194807,2.7515,181.82,181.74,3.14]
[1734836195214,3.14,181.84,181.76,2.7524]
[1734836195521,3.14,181.84,181.74,3.14]
[1734836195849,3.4016,181.9,181.76,16.71329136]
[1734836196010,2.7508,181.87,181.76,16.71329136]
[1734836196206,3.14,181.89,181.76,16.71329136]
[1734836196412,3.14,181.89,181.8,2.7517]
[1734836197120,2.751,181.86,181.81,2.7517]
[1734836197613,2.7509,181.86,181.81,2.7516]
[1734836198216,3.14,181.89,181.78,2.7521]
[1734836198517,3.14,181.89,181.75,3.14]
[1734836198718,2.7517,181.82,181.76,2.7524]
[1734836199018,3.14,181.84,181.76,2.7524]
[1734836199417,3.14,181.84,181.75,3.14]
[1734836200517,2.7514,181.83,181.78,2.752]
[1734836200713,3.14,181.84,181.73,5.0077]
[1734836201117,2.7521,181.78,181.73,7.7606]
[1734836201319,3.14,181.84,181.73,5.0077]
[1734836201514,3.14,181.83,181.7,3.14]
[1734836201720,2.7521,181.79,181.7,5.8933]
[1734836201921,3.14,181.78,181.7,3.14]
[1734836202816,3.14,181.78,181.68,1.6086]
[1734836203016,3.14,181.78,181.66,3.3327]
[1734836203248,2.753,181.73,181.66,6.0867]
[1734836204018,2.7532,181.71,181.65,2.7541]
[1734836204617,2.7534,181.7,181.63,4.3629]
[1734836206012,2.7535,181.69,181.63,1.6086]
[1734836206215,3.14,181.7,181.63,1.6086]
[1734836207017,3.14,181.7,181.57,6.462]
[1734836207422,2.7542,181.65,181.58,2.7552]
[1734836208558,3.14,181.66,181.6,2.7548]
[1734836208727,2.7538,181.68,181.59,16.71329136]
[1734836209025,1.7515,181.72,181.59,16.71329136]
[1734836209222,3.14,181.71,181.63,2.7543]
[1734836209820,5.8933,181.71,181.61,3.14]
[1734836210020,5.8933,181.71,181.64,2.7541]
[1734836210223,1.6292,181.78,181.62,16.71329136]
[1734836210420,1.6292,181.78,181.65,16.71329136]
[1734836210618,3.14,181.77,181.68,2.7536]
[1734836211520,1.6292,181.78,181.66,1.6956]
[1734836211719,3.14,181.77,181.68,16.71329136]
[1734836211916,3.14,181.79,181.68,16.71329136]
[1734836212928,2.7526,181.76,181.68,19.46689136]
[1734836213229,3.14,181.75,181.66,1.6956]
[1734836213428,3.14,181.75,181.65,19.85329136]
[1734836214132,2.7531,181.72,181.66,2.7538]
[1734836215523,2.7529,181.74,181.67,2.7538]
[1734836215732,3.14,181.75,181.65,19.85329136]
[1734836215930,3.14,181.75,181.63,1.7529]
[1734836216330,3.2652,181.74,181.63,1.7529]
[1734836216828,2.7534,181.7,181.6,2.7548]
[1734836217031,3.14,181.69,181.6,2.7548]
[1734836217329,3.14,181.68,181.6,2.7548]
[1734836217529,2.754,181.67,181.6,2.7548]
[1734836220442,3.14,181.68,181.57,1.7052]
[1734836220644,19.85329136,181.68,181.54,66.7896907]
[1734836220839,1.7038,181.67,181.54,66.7896907]
[1734836221338,3.4883,181.66,181.54,66.7896907]
[1734836221546,16.71329136,181.65,181.5,20.02279136]
[1734836221733,3.14,181.64,181.5,3.3095]
[1734836222137,3.14,181.64,181.5,20.02279136]
[1734836222942,2.7552,181.59,181.52,2.7561]
[1734836223151,5.8952,181.59,181.52,2.7561]
[1734836223338,5.8952,181.59,181.5,20.02279136]
[1734836223538,19.85329136,181.59,181.41,16.71329136]
[1734836223743,1.7491,181.58,181.41,16.71329136]
[1734836223938,2.7559,181.53,181.42,2.7575]
[1734836224144,3.14,181.52,181.41,16.71329136]
[1734836225557,2.7564,181.5,181.43,2.7575]
[1734836226148,2.7562,181.51,181.43,2.7575]
[1734836227747,3.14,181.52,181.41,19.47089136]
[1734836228548,2.7566,181.49,181.41,19.47089136]
[1734836228754,2.7566,181.49,181.42,2.7576]
[1734836228944,2.7571,181.46,181.38,1.745]
[1734836229148,3.14,181.45,181.37,3.4852]
[1734836229451,2.7576,181.43,181.37,1.715]
[1734836229645,3.14,181.43,181.37,1.715]
[1734836229875,3.14,181.43,181.34,16.71329136]
[1734836230043,3.14,181.43,181.31,16.71329136]
[1734836230250,3.14,181.43,181.28,21.53029136]
[1734836230451,2.7587,181.35,181.28,1.677]
[1734836230643,16.71329136,181.41,181.28,1.677]
[1734836230848,4.8612,181.4,181.28,1.677]
[1734836231043,2.7591,181.33,181.28,1.677]
[1734836231249,3.14,181.34,181.22,16.71329136]
[1734836231448,3.14,181.33,181.22,16.71329136]
[1734836231645,3.14,181.32,181.2,1.677]
[1734836231854,3.14,181.31,181.2,1.677]
[1734836232059,3.4437,181.37,181.2,1.677]
[1734836232060,3.14,181.3,181.2,1.677]
[1734836232253,3.14,181.29,181.2,1.677]
[1734836232452,3.14,181.28,181.2,29.047676]
[1734836232749,3.4437,181.37,181.23,27.370676]
[1734836232954,5.8989,181.34,181.26,2.76]
[1734836233254,5.8989,181.34,181.24,3.14]
[1734836233555,3.14,181.37,181.29,2.7596]
[1734836233953,3.14,181.37,181.27,1.7239]
[1734836234148,30.653976,181.45,181.29,27.370676]
[1734836234354,3.14,181.44,181.3,1.7511]
[1734836234753,2.7579,181.4,181.3,1.7511]
[1734836234966,3.14,181.44,181.3,1.7511]
[1734836235157,3.14,181.43,181.3,1.7511]
[1734836235553,2.758,181.4,181.32,2.7591]
[1734836235754,3.14,181.39,181.3,1.7511]
[1734836235953,3.14,181.38,181.3,1.7511]
[1734836236152,3.14,181.39,181.3,1.7511]
[1734836236458,3.14,181.42,181.3,1.7511]
[1734836236658,2.7578,181.41,181.3,1.7511]
[1734836236957,3.14,181.42,181.31,3.14]
[1734836238060,2.7581,181.39,181.31,3.14]
[1734836238263,3.14,181.42,181.31,3.14]
[1734836238461,3.14,181.42,181.3,1.7511]
[1734836238666,2.7582,181.39,181.3,1.7511]
[1734836238959,3.14,181.38,181.3,1.7511]
[1734836240259,5.8983,181.38,181.3,4.5104]
[1734836241257,2.7584,181.37,181.3,4.5104]
[1734836241566,3.14,181.38,181.3,4.5104]
[1734836242266,3.14,181.38,181.3,1.7511]
[1734836243162,2.759,181.33,181.28,1.6076]
[1734836245366,2.7592,181.32,181.24,3.14]
[1734836245562,3.14,181.34,181.21,3.2384]
[1734836245795,29.045076,181.33,181.21,3.2384]
[1734836245965,1.6744,181.33,181.21,3.2384]
[1734836246158,3.14,181.33,181.26,2.76]
[1734836246765,2.7591,181.32,181.25,2.7602]
[1734836246964,3.14,181.33,181.23,3.14]
[1734836247174,3.14,181.36,181.25,27.370676]
[1734836247462,3.14,181.37,181.25,27.370676]
[1734836248570,2.7586,181.36,181.3,2.7594]
[1734836249269,3.14,181.37,181.28,5.8996]
[1734836249768,2.7591,181.33,181.28,3.14]
[1734836249966,3.14,181.37,181.26,2.7599]
[1734836250369,2.7591,181.33,181.26,2.7599]
[1734836250871,3.14,181.37,181.26,2.7599]
[1734836251114,2.7591,181.33,181.26,2.7599]
[1734836251468,2.7593,181.31,181.25,27.370676]
[1734836251765,3.14,181.32,181.21,3.2384]
[1734836251965,3.14,181.31,181.21,3.2384]
[1734836252175,3.14,181.31,181.21,5.9991]
[1734836252672,2.7597,181.28,181.21,5.9991]
[1734836252867,3.14,181.31,181.21,5.9991]
[1734836253575,3.14,181.31,181.2,1.6894]
[1734836253772,1.6535,181.3,181.2,1.6894]
[1734836254172,2.7604,181.24,181.2,1.6894]
[1734836254473,2.7604,181.24,181.19,2.25614609]
[1734836254968,2.761,181.2,181.19,2.25614609]
[1734836255173,27.370676,181.26,181.19,1.15790877]
[1734836255396,3.14,181.25,181.19,1.15790877]
[1734836255568,5.9002,181.25,181.19,1.15790877]
[1734836256370,2.76,181.27,181.2,2.7609]
[1734836256673,5.9,181.27,181.2,2.7609]
[1734836256874,2.7601,181.26,181.19,1.15790877]
[1734836257274,3.14,181.27,181.19,1.15790877]
[1734836257674,2.7605,181.24,181.19,1.15790877]
[1734836258572,3.14,181.27,181.19,1.15790877]
[1734836258769,2.7605,181.23,181.19,1.15790877]
[1734836258974,5.9005,181.23,181.19,1.15790877]
[1734836259671,2.7607,181.22,181.19,1.15790877]
[1734836260474,3.14,181.23,181.19,1.15790877]
[1734836260772,3.14,181.26,181.19,1.15790877]
[1734836261162,3.14,181.32,181.2,3.14]
[1734836261713,30.510676,181.32,181.19,1.15790877]
[1734836261874,30.510676,181.32,181.19,3.91890877]
[1734836262085,30.510676,181.32,181.19,1.15790877]
[1734836262376,2.76,181.27,181.21,2.7608]
[1734836262775,1.6021,181.33,181.19,1.15790877]
[1734836262971,2.7593,181.31,181.19,1.15790877]
[1734836263278,2.7593,181.31,181.2,27.370676]
[1734836263465,3.14,181.32,181.21,3.14]
[1734836263665,29.143576,181.38,181.23,27.370676]
[1734836263870,3.14,181.35,181.24,5.0727]
[1734836264072,29.143576,181.38,181.25,3.14]
[1734836264281,3.14,181.37,181.25,3.14]
[1734836264774,3.14,181.37,181.3,2.7594]
[1734836265176,3.14,181.37,181.25,3.14]
[1734836265476,2.7587,181.35,181.29,2.7596]
[1734836265967,2.7585,181.36,181.25,3.14]
[1734836266578,2.7585,181.36,181.3,2.7593]
[1734836266779,2.7585,181.36,181.25,3.14]
[1734836267681,27.370676,181.41,181.26,27.370676]
[1734836267878,3.14,181.4,181.26,27.370676]
[1734836268181,2.7578,181.41,181.36,2.7584]
[1734836268772,3.14,181.42,181.37,2.7583]
[1734836269484,1.7299,181.47,181.36,3.14]
[1734836269677,2.757,181.46,181.41,2.7577]
[1734836270079,2.7567,181.49,181.36,3.14]
[1734836270280,29.028376,181.53,181.38,27.370676]
[1734836270281,3.14,181.52,181.38,27.370676]
[1734836270478,3.5031,181.53,181.41,27.370676]
[1734836270679,6.6431,181.53,181.42,8.3828]
[1734836270976,34.013776,181.53,181.42,5.2428]
[1734836271228,2.7564,181.5,181.42,3.5296]
[1734836271380,34.013776,181.53,181.42,3.5296]
[1734836272288,2.7564,181.51,181.42,6.2871]
[1734836272481,34.013776,181.53,181.42,3.5296]
[1734836273382,2.7565,181.49,181.41,2.7576]
[1734836273577,5.8965,181.49,181.39,1.5999]
[1734836274080,3.14,181.49,181.42,2.7576]
[1734836274284,3.5031,181.53,181.43,3.14]
[1734836274482,3.14,181.55,181.43,3.14]
[1734836274684,5.8957,181.55,181.46,2.7569]
[1734836274878,3.14,181.55,181.43,3.14]
[1734836275284,2.7563,181.51,181.44,2.7572]
[1734836275583,3.14,181.55,181.43,3.14]
[1734836275985,2.7562,181.51,181.45,2.7571]
[1734836276283,3.16,181.51,181.43,3.14]
[1734836276783,3.16,181.51,181.4,4.8113]
[1734836278982,2.7565,181.5,181.4,4.8113]
[1734836279780,5.9162,181.51,181.4,4.8113]
[1734836279981,3.16,181.51,181.41,27.370676]
[1734836280183,3.16,181.54,181.41,27.370676]
[1734836280385,5.9159,181.54,181.41,27.370676]
[1734836280580,3.16,181.54,181.44,27.370676]
[1734836280781,3.16,181.54,181.45,3.16]
[1734836282090,3.16,181.54,181.42,3.16]
[1734836282384,2.7561,181.52,181.46,2.757]
[1734836282589,3.16,181.54,181.42,3.16]
[1734836282782,3.16,181.54,181.44,27.370676]
[1734836282978,5.9158,181.54,181.47,2.7569]
[1734836283177,5.9158,181.54,181.46,3.16]
[1734836283985,2.7561,181.52,181.46,5.9169]
[1734836284183,3.16,181.54,181.46,3.16]
[1734836284584,2.7561,181.53,181.48,2.7567]
[1734836284788,3.16,181.55,181.46,3.16]
[1734836285184,3.16,181.55,181.47,2.7568]
[1734836285389,3.16,181.55,181.41,27.370676]
[1734836285990,2.7559,181.54,181.47,2.7568]
[1734836286486,3.16,181.55,181.49,2.7564]
[1734836286690,3.16,181.55,181.45,3.16]
[1734836287087,2.756,181.53,181.45,3.16]
[1734836287287,3.16,181.55,181.45,3.16]